[Event "Titled Tuesday Blitz May 11 2021"]
[White "Vogel, Roven"]
[Black "Quparadze, Giga"]
[WhiteFideId "12908088"]
[BlackFideId "13602250"]
[WhiteElo "2516"]
[BlackElo "2658"]
[Result "0-1"]
[Round "06"]
[TimeControl "180+1"]
[Date "2021.05.11"]
[WhiteClock "0:00:05"]
[BlackClock "0:00:42"]

1. d4 {[%clk 0:03:00]}  e6 {[%clk 0:02:58]} 2. c4 {[%clk 0:03:00]}  Nf6 {[%clk 0:02:58]} 3. Nf3 {[%clk 0:02:59]}  b6 {[%clk 0:02:58]} 4. a3 {[%clk 0:02:58]}  c6 {[%clk 0:02:57]} 5. Nc3 {[%clk 0:02:57]}  d5 {[%clk 0:02:56]} 6. cxd5 {[%clk 0:02:47]}  cxd5 {[%clk 0:02:57]} 7. Bf4 {[%clk 0:02:47]}  a6 {[%clk 0:02:57]} 8. e3 {[%clk 0:02:46]}  Bb7 {[%clk 0:02:57]} 9. Bd3 {[%clk 0:02:46]}  Bd6 {[%clk 0:02:56]} 10. Ne5 {[%clk 0:02:46]}  O-O {[%clk 0:02:50]} 11. O-O {[%clk 0:02:45]}  Ne4 {[%clk 0:02:50]} 12. Qc2 {[%clk 0:02:36]}  f5 {[%clk 0:02:41]} 13. f3 {[%clk 0:02:35]}  Nxc3 {[%clk 0:02:41]} 14. Qxc3 {[%clk 0:02:36]}  Bxe5 {[%clk 0:02:29]} 15. Bxe5 {[%clk 0:02:35]}  Nc6 {[%clk 0:02:29]} 16. Bg3 {[%clk 0:02:31]}  Rc8 {[%clk 0:02:29]} 17. Qd2 {[%clk 0:02:18]}  Na5 {[%clk 0:02:28]} 18. Qe2 {[%clk 0:02:14]}  Nb3 {[%clk 0:02:16]} 19. Rad1 {[%clk 0:02:13]}  b5 {[%clk 0:02:16]} 20. Bc2 {[%clk 0:02:10]}  Na5 {[%clk 0:02:15]} 21. Rc1 {[%clk 0:02:08]}  Qb6 {[%clk 0:02:12]} 22. Bd3 {[%clk 0:01:51]}  Nb3 {[%clk 0:02:03]} 23. Rc2 {[%clk 0:01:48]}  f4 {[%clk 0:01:57]} 24. Rxc8 {[%clk 0:01:43]}  Bxc8 {[%clk 0:01:56]} 25. Bxf4 {[%clk 0:01:33]}  Nxd4 {[%clk 0:01:55]} 26. Qf2 {[%clk 0:01:33]}  Nc6 {[%clk 0:01:46]} 27. Qh4 {[%clk 0:01:13]}  g6 {[%clk 0:01:45]} 28. Rc1 {[%clk 0:01:05]}  Bd7 {[%clk 0:01:44]} 29. Qh6 {[%clk 0:00:58]}  Be8 {[%clk 0:01:36]} 30. Bd6 {[%clk 0:00:49]}  Rf6 {[%clk 0:01:34]} 31. Bc5 {[%clk 0:00:40]}  Qb8 {[%clk 0:01:28]} 32. Qg5 {[%clk 0:00:27]}  Kg7 {[%clk 0:01:23]} 33. Bf1 {[%clk 0:00:23]}  Rf5 {[%clk 0:01:19]} 34. Qh4 {[%clk 0:00:21]}  g5 {[%clk 0:01:15]} 35. Qe1 {[%clk 0:00:21]}  Qd8 {[%clk 0:01:08]} 36. e4 {[%clk 0:00:20]}  Re5 {[%clk 0:01:07]} 37. Rd1 {[%clk 0:00:18]}  d4 {[%clk 0:01:06]} 38. b4 {[%clk 0:00:18]}  Rxc5 {[%clk 0:00:56]} 39. bxc5 {[%clk 0:00:17]}  e5 {[%clk 0:00:56]} 40. Qd2 {[%clk 0:00:17]}  Qe7 {[%clk 0:00:56]} 41. Rc1 {[%clk 0:00:17]}  h6 {[%clk 0:00:57]} 42. a4 {[%clk 0:00:17]}  bxa4 {[%clk 0:00:54]} 43. Bxa6 {[%clk 0:00:17]}  a3 {[%clk 0:00:54]} 44. Bb5 {[%clk 0:00:17]}  Qa7 {[%clk 0:00:54]} 45. Qa2 {[%clk 0:00:16]}  Nb4 {[%clk 0:00:53]} 46. Qc4 {[%clk 0:00:16]}  a2 {[%clk 0:00:51]} 47. Ra1 {[%clk 0:00:15]}  Bxb5 {[%clk 0:00:50]} 48. Qxb4 {[%clk 0:00:15]}  Be8 {[%clk 0:00:49]} 49. Qb6 {[%clk 0:00:13]}  Qa3 {[%clk 0:00:44]} 50. Qc7+ {[%clk 0:00:12]}  Kg8 {[%clk 0:00:44]} 51. Qxe5 {[%clk 0:00:11]}  Qe3+ {[%clk 0:00:43]} 52. Kh1 {[%clk 0:00:10]}  Bf7 {[%clk 0:00:43]} 53. c6 {[%clk 0:00:10]}  Qc3 {[%clk 0:00:43]} 54. Qb8+ {[%clk 0:00:08]}  Kh7 {[%clk 0:00:43]} 55. Rg1 {[%clk 0:00:05]}  a1=Q {[%clk 0:00:42]} 0-1


[Site "https://www.chess.com"]

[Event "Titled Tuesday Blitz May 11 2021"]
[White "Yoo, Christopher Woojin"]
[Black "Yuan, Qingyu"]
[WhiteFideId "30909694"]
[BlackFideId "8609772"]
[WhiteElo "2009"]
[BlackElo "2359"]
[Result "1-0"]
[Round "06"]
[TimeControl "180+1"]
[Date "2021.05.11"]
[WhiteClock "0:00:06"]
[BlackClock "0:00:03"]

1. e4 {[%clk 0:03:00]}  c5 {[%clk 0:02:59]} 2. Nf3 {[%clk 0:02:59]}  d6 {[%clk 0:03:00]} 3. d4 {[%clk 0:02:59]}  cxd4 {[%clk 0:03:01]} 4. Nxd4 {[%clk 0:03:00]}  Nf6 {[%clk 0:03:01]} 5. Nc3 {[%clk 0:03:00]}  a6 {[%clk 0:03:01]} 6. a3 {[%clk 0:03:00]}  e5 {[%clk 0:03:01]} 7. Nf5 {[%clk 0:02:59]}  d5 {[%clk 0:03:01]} 8. Bg5 {[%clk 0:02:59]}  d4 {[%clk 0:03:01]} 9. Bxf6 {[%clk 0:02:59]}  gxf6 {[%clk 0:03:02]} 10. Nb1 {[%clk 0:02:59]}  Bxf5 {[%clk 0:02:56]} 11. exf5 {[%clk 0:02:58]}  Qb6 {[%clk 0:02:55]} 12. Nd2 {[%clk 0:02:56]}  Nd7 {[%clk 0:02:33]} 13. Bd3 {[%clk 0:02:36]}  Qxb2 {[%clk 0:02:31]} 14. O-O {[%clk 0:02:24]}  Qb6 {[%clk 0:02:23]} 15. Rb1 {[%clk 0:02:23]}  Qc7 {[%clk 0:02:21]} 16. Qh5 {[%clk 0:02:10]}  Nc5 {[%clk 0:02:18]} 17. Ne4 {[%clk 0:02:04]}  Nxe4 {[%clk 0:02:09]} 18. Bxe4 {[%clk 0:02:05]}  Rb8 {[%clk 0:02:08]} 19. Rb3 {[%clk 0:01:42]}  Rg8 {[%clk 0:01:42]} 20. Qxh7 {[%clk 0:01:37]}  Rg4 {[%clk 0:01:41]} 21. Bd3 {[%clk 0:01:19]}  b5 {[%clk 0:01:24]} 22. Qh3 {[%clk 0:00:58]}  Rg8 {[%clk 0:01:12]} 23. Qf3 {[%clk 0:00:42]}  Qb6 {[%clk 0:01:01]} 24. a4 {[%clk 0:00:37]}  b4 {[%clk 0:01:00]} 25. a5 {[%clk 0:00:34]}  Qd6 {[%clk 0:00:53]} 26. Be4 {[%clk 0:00:32]}  Kd8 {[%clk 0:00:46]} 27. Rfb1 {[%clk 0:00:23]}  Kc7 {[%clk 0:00:44]} 28. Qd3 {[%clk 0:00:19]}  Rb5 {[%clk 0:00:42]} 29. Qc4+ {[%clk 0:00:17]}  Kd8 {[%clk 0:00:31]} 30. Qxf7 {[%clk 0:00:14]}  Rg7 {[%clk 0:00:31]} 31. Qc4 {[%clk 0:00:14]}  Rc7 {[%clk 0:00:31]} 32. Qe2 {[%clk 0:00:13]}  Rxa5 {[%clk 0:00:26]} 33. h4 {[%clk 0:00:13]}  Rb5 {[%clk 0:00:22]} 34. Rg3 {[%clk 0:00:12]}  Rg7 {[%clk 0:00:20]} 35. Rxg7 {[%clk 0:00:11]}  Bxg7 {[%clk 0:00:20]} 36. Qc4 {[%clk 0:00:11]}  Qe7 {[%clk 0:00:14]} 37. Ra1 {[%clk 0:00:10]}  Rb6 {[%clk 0:00:13]} 38. Rxa6 {[%clk 0:00:08]}  Rxa6 {[%clk 0:00:13]} 39. Qxa6 {[%clk 0:00:09]}  Qc7 {[%clk 0:00:08]} 40. Qa8+ {[%clk 0:00:09]}  Qc8 {[%clk 0:00:05]} 41. Qa5+ {[%clk 0:00:08]}  Ke7 {[%clk 0:00:04]} 42. Qxb4+ {[%clk 0:00:08]}  Kd7 {[%clk 0:00:03]} 43. h5 {[%clk 0:00:06]}  Bh6 {[%clk 0:00:02]} 44. Qb6 {[%clk 0:00:05]}  Qd8 {[%clk 0:00:02]} 45. Qe6+ {[%clk 0:00:05]}  Kc7 {[%clk 0:00:03]} 46. Qc6+ {[%clk 0:00:05]}  Kb8 {[%clk 0:00:03]} 47. Qb7# {[%clk 0:00:06]} 1-0


[Site "https://www.chess.com"]

[Event "Titled Tuesday Blitz May 11 2021"]
[White "Artemiev, Vladislav"]
[Black "Yoo, Christopher Woojin"]
[WhiteFideId "24101605"]
[BlackFideId "30909694"]
[WhiteElo "2783"]
[BlackElo "2009"]
[Result "1-0"]
[Round "07"]
[TimeControl "180+1"]
[Date "2021.05.11"]
[WhiteClock "0:00:08"]
[BlackClock "0:00:18"]

1. e4 {[%clk 0:02:59]}  c5 {[%clk 0:02:58]} 2. g3 {[%clk 0:02:58]}  Nc6 {[%clk 0:02:57]} 3. Bg2 {[%clk 0:02:58]}  g6 {[%clk 0:02:56]} 4. Ne2 {[%clk 0:02:52]}  Bg7 {[%clk 0:02:55]} 5. O-O {[%clk 0:02:52]}  d6 {[%clk 0:02:54]} 6. c3 {[%clk 0:02:52]}  e5 {[%clk 0:02:53]} 7. d3 {[%clk 0:02:51]}  Nge7 {[%clk 0:02:53]} 8. Be3 {[%clk 0:02:41]}  O-O {[%clk 0:02:53]} 9. Qd2 {[%clk 0:02:34]}  Bg4 {[%clk 0:02:50]} 10. h3 {[%clk 0:02:27]}  Be6 {[%clk 0:02:48]} 11. d4 {[%clk 0:02:14]}  exd4 {[%clk 0:02:40]} 12. cxd4 {[%clk 0:02:14]}  Bc4 {[%clk 0:02:40]} 13. d5 {[%clk 0:02:10]}  Nd4 {[%clk 0:02:31]} 14. Bxd4 {[%clk 0:01:57]}  Bxd4 {[%clk 0:02:29]} 15. Nxd4 {[%clk 0:01:47]}  Bxf1 {[%clk 0:02:28]} 16. Bxf1 {[%clk 0:01:46]}  cxd4 {[%clk 0:02:28]} 17. Qxd4 {[%clk 0:01:47]}  Nc8 {[%clk 0:02:23]} 18. Nd2 {[%clk 0:01:44]}  Qb6 {[%clk 0:02:23]} 19. Qc3 {[%clk 0:01:40]}  Qc5 {[%clk 0:02:14]} 20. Qxc5 {[%clk 0:01:35]}  dxc5 {[%clk 0:02:14]} 21. Rc1 {[%clk 0:01:32]}  b6 {[%clk 0:02:13]} 22. e5 {[%clk 0:01:31]}  Ne7 {[%clk 0:02:13]} 23. d6 {[%clk 0:01:23]}  Nf5 {[%clk 0:02:08]} 24. Nf3 {[%clk 0:01:12]}  Rad8 {[%clk 0:02:00]} 25. g4 {[%clk 0:00:42]}  Ng7 {[%clk 0:01:57]} 26. Bc4 {[%clk 0:00:40]}  h6 {[%clk 0:01:44]} 27. Nd2 {[%clk 0:00:35]}  Rfe8 {[%clk 0:01:39]} 28. f4 {[%clk 0:00:33]}  Ne6 {[%clk 0:01:38]} 29. Rf1 {[%clk 0:00:22]}  Kg7 {[%clk 0:01:20]} 30. Ne4 {[%clk 0:00:22]}  Nd4 {[%clk 0:01:09]} 31. Nf6 {[%clk 0:00:21]}  Rf8 {[%clk 0:01:07]} 32. Ne4 {[%clk 0:00:12]}  b5 {[%clk 0:00:53]} 33. Bd5 {[%clk 0:00:10]}  c4 {[%clk 0:00:54]} 34. Kf2 {[%clk 0:00:10]}  f5 {[%clk 0:00:50]} 35. exf6+ {[%clk 0:00:06]}  Rxf6 {[%clk 0:00:49]} 36. Nxf6 {[%clk 0:00:07]}  Kxf6 {[%clk 0:00:50]} 37. Rd1 {[%clk 0:00:07]}  Nc2 {[%clk 0:00:45]} 38. Be4 {[%clk 0:00:07]}  Nb4 {[%clk 0:00:45]} 39. a3 {[%clk 0:00:04]}  Na6 {[%clk 0:00:45]} 40. h4 {[%clk 0:00:05]}  Nc5 {[%clk 0:00:45]} 41. g5+ {[%clk 0:00:05]}  hxg5 {[%clk 0:00:45]} 42. hxg5+ {[%clk 0:00:06]}  Kf7 {[%clk 0:00:44]} 43. Bc2 {[%clk 0:00:06]}  Nb7 {[%clk 0:00:40]} 44. d7 {[%clk 0:00:05]}  Nc5 {[%clk 0:00:39]} 45. Rd5 {[%clk 0:00:03]}  Rxd7 {[%clk 0:00:37]} 46. Rxc5 {[%clk 0:00:03]}  Rd2+ {[%clk 0:00:37]} 47. Ke3 {[%clk 0:00:03]}  Rxc2 {[%clk 0:00:38]} 48. Rxb5 {[%clk 0:00:04]}  c3 {[%clk 0:00:38]} 49. b3 {[%clk 0:00:04]}  Rh2 {[%clk 0:00:26]} 50. Kd3 {[%clk 0:00:03]}  c2 {[%clk 0:00:24]} 51. Rc5 {[%clk 0:00:04]}  Ke6 {[%clk 0:00:24]} 52. Rxc2 {[%clk 0:00:03]}  Rxc2 {[%clk 0:00:24]} 53. Kxc2 {[%clk 0:00:03]}  Kf5 {[%clk 0:00:25]} 54. b4 {[%clk 0:00:04]}  Kxf4 {[%clk 0:00:25]} 55. b5 {[%clk 0:00:05]}  Kxg5 {[%clk 0:00:17]} 56. a4 {[%clk 0:00:05]}  Kh4 {[%clk 0:00:15]} 57. a5 {[%clk 0:00:05]}  g5 {[%clk 0:00:16]} 58. b6 {[%clk 0:00:05]}  axb6 {[%clk 0:00:17]} 59. axb6 {[%clk 0:00:06]}  g4 {[%clk 0:00:17]} 60. b7 {[%clk 0:00:07]}  g3 {[%clk 0:00:18]} 61. b8=Q {[%clk 0:00:08]} 1-0


[Site "https://www.chess.com"]

[Event "Titled Tuesday Blitz May 11 2021"]
[White "Chigaev, Maksim"]
[Black "Le, Tuan Minh"]
[WhiteFideId "4108116"]
[BlackFideId "12401153"]
[WhiteElo "2646"]
[BlackElo "2450"]
[Result "1-0"]
[Round "07"]
[TimeControl "180+1"]
[Date "2021.05.11"]
[WhiteClock "0:00:22"]
[BlackClock "0:00:10"]

1. e4 {[%clk 0:03:00]}  c5 {[%clk 0:02:59]} 2. Nc3 {[%clk 0:03:00]}  Nc6 {[%clk 0:02:57]} 3. Bb5 {[%clk 0:03:00]}  g6 {[%clk 0:02:57]} 4. Bxc6 {[%clk 0:03:00]}  bxc6 {[%clk 0:02:58]} 5. f4 {[%clk 0:02:59]}  Bg7 {[%clk 0:02:58]} 6. Nf3 {[%clk 0:02:59]}  d6 {[%clk 0:02:56]} 7. O-O {[%clk 0:02:58]}  Nf6 {[%clk 0:02:49]} 8. Kh1 {[%clk 0:02:58]}  O-O {[%clk 0:02:48]} 9. d3 {[%clk 0:02:56]}  Rb8 {[%clk 0:02:47]} 10. Qe1 {[%clk 0:02:55]}  d5 {[%clk 0:02:20]} 11. e5 {[%clk 0:02:51]}  Ne8 {[%clk 0:02:19]} 12. Na4 {[%clk 0:02:49]}  c4 {[%clk 0:02:12]} 13. d4 {[%clk 0:02:47]}  Bf5 {[%clk 0:02:08]} 14. Rf2 {[%clk 0:02:22]}  Nc7 {[%clk 0:02:08]} 15. b3 {[%clk 0:02:22]}  cxb3 {[%clk 0:01:54]} 16. axb3 {[%clk 0:02:23]}  Ne6 {[%clk 0:01:51]} 17. Qc3 {[%clk 0:02:02]}  f6 {[%clk 0:01:32]} 18. Be3 {[%clk 0:01:58]}  fxe5 {[%clk 0:01:29]} 19. dxe5 {[%clk 0:01:43]}  Be4 {[%clk 0:01:03]} 20. Nd4 {[%clk 0:01:17]}  Nxd4 {[%clk 0:00:34]} 21. Qxd4 {[%clk 0:01:17]}  Qc7 {[%clk 0:00:15]} 22. Nc5 {[%clk 0:01:14]}  Bf5 {[%clk 0:00:15]} 23. Na6 {[%clk 0:01:13]}  Qc8 {[%clk 0:00:12]} 24. Nxb8 {[%clk 0:01:14]}  Qxb8 {[%clk 0:00:13]} 25. Rxa7 {[%clk 0:01:06]}  Re8 {[%clk 0:00:11]} 26. h3 {[%clk 0:01:03]}  Be4 {[%clk 0:00:10]} 27. Qb6 {[%clk 0:01:01]}  Qc8 {[%clk 0:00:10]} 28. Kh2 {[%clk 0:00:59]}  g5 {[%clk 0:00:10]} 29. Rc7 {[%clk 0:00:58]}  Qf5 {[%clk 0:00:09]} 30. Qxc6 {[%clk 0:00:58]}  Rf8 {[%clk 0:00:10]} 31. Rxe7 {[%clk 0:00:48]}  d4 {[%clk 0:00:10]} 32. Qc4+ {[%clk 0:00:43]}  Kh8 {[%clk 0:00:10]} 33. Qxd4 {[%clk 0:00:38]}  g4 {[%clk 0:00:10]} 34. Rxg7 {[%clk 0:00:30]}  Kxg7 {[%clk 0:00:09]} 35. hxg4 {[%clk 0:00:30]}  Qg6 {[%clk 0:00:10]} 36. e6+ {[%clk 0:00:29]}  Kg8 {[%clk 0:00:10]} 37. f5 {[%clk 0:00:29]}  Qxg4 {[%clk 0:00:10]} 38. e7 {[%clk 0:00:28]}  Re8 {[%clk 0:00:10]} 39. f6 {[%clk 0:00:22]}  Kf7 {[%clk 0:00:10]} 40. Qc4+ {[%clk 0:00:22]} 1-0


[Site "https://www.chess.com"]

[Event "Titled Tuesday Blitz May 11 2021"]
[White "Drygalov, Sergey"]
[Black "Laxman, R.R."]
[WhiteFideId "24171743"]
[BlackFideId "5005361"]
[WhiteElo "2538"]
[BlackElo "2476"]
[Result "1-0"]
[Round "07"]
[TimeControl "180+1"]
[Date "2021.05.11"]
[WhiteClock "0:00:07"]
[BlackClock "0:00:01"]

1. d4 {[%clk 0:03:00]}  Nf6 {[%clk 0:02:59]} 2. c4 {[%clk 0:03:00]}  e6 {[%clk 0:03:00]} 3. Nf3 {[%clk 0:03:01]}  d5 {[%clk 0:02:59]} 4. Nc3 {[%clk 0:03:01]}  a6 {[%clk 0:03:00]} 5. cxd5 {[%clk 0:02:56]}  exd5 {[%clk 0:03:00]} 6. Bg5 {[%clk 0:02:56]}  Be7 {[%clk 0:02:59]} 7. Bxf6 {[%clk 0:02:56]}  Bxf6 {[%clk 0:03:00]} 8. Qb3 {[%clk 0:02:56]}  c6 {[%clk 0:02:59]} 9. g3 {[%clk 0:02:54]}  O-O {[%clk 0:02:59]} 10. h4 {[%clk 0:02:53]}  c5 {[%clk 0:02:54]} 11. Nxd5 {[%clk 0:02:42]}  cxd4 {[%clk 0:02:53]} 12. Nxf6+ {[%clk 0:02:33]}  Qxf6 {[%clk 0:02:52]} 13. Bg2 {[%clk 0:02:34]}  Nc6 {[%clk 0:02:51]} 14. O-O {[%clk 0:02:33]}  Rb8 {[%clk 0:02:35]} 15. Ng5 {[%clk 0:02:31]}  Bf5 {[%clk 0:02:32]} 16. Rac1 {[%clk 0:02:29]}  d3 {[%clk 0:02:26]} 17. exd3 {[%clk 0:02:23]}  Nd4 {[%clk 0:02:26]} 18. Qd1 {[%clk 0:02:23]}  Rbd8 {[%clk 0:02:21]} 19. Re1 {[%clk 0:02:08]}  h6 {[%clk 0:02:18]} 20. Ne4 {[%clk 0:02:08]}  Qb6 {[%clk 0:02:17]} 21. Qd2 {[%clk 0:01:46]}  Bxe4 {[%clk 0:02:16]} 22. Bxe4 {[%clk 0:01:44]}  f5 {[%clk 0:02:17]} 23. Bg2 {[%clk 0:01:22]}  f4 {[%clk 0:02:17]} 24. gxf4 {[%clk 0:01:13]}  Qg6 {[%clk 0:02:10]} 25. Re3 {[%clk 0:00:57]}  Rxf4 {[%clk 0:02:07]} 26. Rg3 {[%clk 0:00:47]}  Qf7 {[%clk 0:02:03]} 27. h5 {[%clk 0:00:30]}  Qxh5 {[%clk 0:01:58]} 28. Re1 {[%clk 0:00:25]}  Qf7 {[%clk 0:01:53]} 29. Re4 {[%clk 0:00:22]}  Rxe4 {[%clk 0:01:48]} 30. Bxe4 {[%clk 0:00:23]}  Qxa2 {[%clk 0:01:40]} 31. Qxh6 {[%clk 0:00:19]}  Ne2+ {[%clk 0:01:40]} 32. Kg2 {[%clk 0:00:16]}  Nxg3 {[%clk 0:01:41]} 33. Qh7+ {[%clk 0:00:16]}  Kf8 {[%clk 0:01:41]} 34. Qh8+ {[%clk 0:00:16]}  Qg8 {[%clk 0:01:40]} 35. Qh4 {[%clk 0:00:14]}  g5 {[%clk 0:01:28]} 36. Qxg3 {[%clk 0:00:13]}  Qg7 {[%clk 0:01:28]} 37. Qf3+ {[%clk 0:00:12]}  Qf7 {[%clk 0:01:21]} 38. Qg3 {[%clk 0:00:12]}  Qf4 {[%clk 0:01:16]} 39. Qh3 {[%clk 0:00:12]}  Qf6 {[%clk 0:01:14]} 40. Qh7 {[%clk 0:00:11]}  b5 {[%clk 0:01:13]} 41. Qc7 {[%clk 0:00:10]}  Re8 {[%clk 0:01:00]} 42. b4 {[%clk 0:00:10]}  Qe7 {[%clk 0:00:59]} 43. Qb6 {[%clk 0:00:08]}  Qe5 {[%clk 0:00:37]} 44. Qxa6 {[%clk 0:00:07]}  Re7 {[%clk 0:00:36]} 45. Qh6+ {[%clk 0:00:07]}  Ke8 {[%clk 0:00:32]} 46. Qg6+ {[%clk 0:00:07]}  Kf8 {[%clk 0:00:24]} 47. Qh6+ {[%clk 0:00:07]}  Kg8 {[%clk 0:00:23]} 48. Qg6+ {[%clk 0:00:07]}  Rg7 {[%clk 0:00:19]} 49. Qc6 {[%clk 0:00:07]}  g4 {[%clk 0:00:15]} 50. Bd5+ {[%clk 0:00:07]}  Kh7 {[%clk 0:00:15]} 51. Be4+ {[%clk 0:00:07]}  Kg8 {[%clk 0:00:16]} 52. Bd5+ {[%clk 0:00:07]}  Kf8 {[%clk 0:00:15]} 53. Qc8+ {[%clk 0:00:06]}  Ke7 {[%clk 0:00:15]} 54. Qc5+ {[%clk 0:00:06]}  Kf6 {[%clk 0:00:13]} 55. Qc6+ {[%clk 0:00:06]}  Kg5 {[%clk 0:00:12]} 56. Be4 {[%clk 0:00:06]}  Kh5 {[%clk 0:00:08]} 57. Qc8 {[%clk 0:00:05]}  Kg5 {[%clk 0:00:08]} 58. Qc6 {[%clk 0:00:05]}  Kh5 {[%clk 0:00:06]} 59. Qc8 {[%clk 0:00:05]}  Kg5 {[%clk 0:00:05]} 60. Qd8+ {[%clk 0:00:06]}  Kh5 {[%clk 0:00:04]} 61. Bc6 {[%clk 0:00:06]}  g3 {[%clk 0:00:03]} 62. Be8+ {[%clk 0:00:06]}  Kg4 {[%clk 0:00:03]} 63. f3+ {[%clk 0:00:06]}  Kf4 {[%clk 0:00:03]} 64. Qh4+ {[%clk 0:00:05]}  Ke3 {[%clk 0:00:03]} 65. Qh6+ {[%clk 0:00:06]}  Ke2 {[%clk 0:00:02]} 66. Bg6 {[%clk 0:00:06]}  Qb2 {[%clk 0:00:01]} 67. Kxg3 {[%clk 0:00:05]}  Ke1 {[%clk 0:00:02]} 68. f4 {[%clk 0:00:04]}  Qf2+ {[%clk 0:00:02]} 69. Kg4 {[%clk 0:00:04]}  Qg2+ {[%clk 0:00:02]} 70. Kf5 {[%clk 0:00:05]}  Qd5+ {[%clk 0:00:03]} 71. Kg4 {[%clk 0:00:05]}  Qg2+ {[%clk 0:00:03]} 72. Kf5 {[%clk 0:00:05]}  Qd5+ {[%clk 0:00:03]} 73. Kg4 {[%clk 0:00:06]}  Re7 {[%clk 0:00:03]} 74. Qh4+ {[%clk 0:00:05]}  Kd2 {[%clk 0:00:01]} 75. Qxe7 {[%clk 0:00:06]}  Qg2+ {[%clk 0:00:01]} 76. Kf5 {[%clk 0:00:06]}  Qh3+ {[%clk 0:00:01]} 77. Kf6 {[%clk 0:00:06]}  Qh4+ {[%clk 0:00:02]} 78. Ke6 {[%clk 0:00:06]}  Qg4+ {[%clk 0:00:01]} 79. Bf5 {[%clk 0:00:06]}  Qe2+ {[%clk 0:00:01]} 80. Be4 {[%clk 0:00:06]}  Qg4+ {[%clk 0:00:01]} 81. f5 {[%clk 0:00:06]}  Qg8+ {[%clk 0:00:01]} 82. Qf7 {[%clk 0:00:06]}  Qc8+ {[%clk 0:00:01]} 83. Kf6 {[%clk 0:00:07]}  Qd8+ {[%clk 0:00:01]} 84. Kg6 {[%clk 0:00:07]} 1-0


[Site "https://www.chess.com"]

[Event "Titled Tuesday Blitz May 11 2021"]
[White "Gabrielian, Artur"]
[Black "Sanal, Vahap"]
[WhiteFideId "4131002"]
[BlackFideId "6300545"]
[WhiteElo "2539"]
[BlackElo "2507"]
[Result "1-0"]
[Round "07"]
[TimeControl "180+1"]
[Date "2021.05.11"]
[WhiteClock "0:00:04"]
[BlackClock "0:00:01"]

1. e4 {[%clk 0:03:00]}  d6 {[%clk 0:02:58]} 2. d4 {[%clk 0:03:00]}  Nf6 {[%clk 0:02:57]} 3. Nc3 {[%clk 0:03:00]}  e5 {[%clk 0:02:54]} 4. Nf3 {[%clk 0:02:58]}  Nbd7 {[%clk 0:02:53]} 5. Bc4 {[%clk 0:02:57]}  Be7 {[%clk 0:02:52]} 6. O-O {[%clk 0:02:56]}  O-O {[%clk 0:02:52]} 7. a4 {[%clk 0:02:56]}  c6 {[%clk 0:02:52]} 8. Re1 {[%clk 0:02:55]}  h6 {[%clk 0:02:52]} 9. h3 {[%clk 0:02:54]}  Re8 {[%clk 0:02:51]} 10. a5 {[%clk 0:02:49]}  Rb8 {[%clk 0:02:50]} 11. Bb3 {[%clk 0:02:46]}  exd4 {[%clk 0:02:45]} 12. Qxd4 {[%clk 0:02:37]}  Nc5 {[%clk 0:02:38]} 13. Bf4 {[%clk 0:02:30]}  Be6 {[%clk 0:02:22]} 14. Bxe6 {[%clk 0:02:11]}  Nxe6 {[%clk 0:02:22]} 15. Qd2 {[%clk 0:02:11]}  Nxf4 {[%clk 0:02:09]} 16. Qxf4 {[%clk 0:02:11]}  Qc7 {[%clk 0:02:07]} 17. Nd4 {[%clk 0:02:08]}  Bf8 {[%clk 0:02:01]} 18. Nf5 {[%clk 0:02:06]}  Nd7 {[%clk 0:01:57]} 19. Re3 {[%clk 0:02:00]}  Ne5 {[%clk 0:01:43]} 20. Rg3 {[%clk 0:02:00]}  Ng6 {[%clk 0:01:39]} 21. Qg4 {[%clk 0:01:50]}  Kh7 {[%clk 0:01:34]} 22. f4 {[%clk 0:01:31]}  Qd8 {[%clk 0:01:08]} 23. h4 {[%clk 0:01:27]}  Qf6 {[%clk 0:01:02]} 24. Rd1 {[%clk 0:01:11]}  Rbd8 {[%clk 0:00:58]} 25. Rdd3 {[%clk 0:01:07]}  Ne7 {[%clk 0:00:52]} 26. Ne3 {[%clk 0:00:58]}  Ng6 {[%clk 0:00:50]} 27. h5 {[%clk 0:00:47]}  Ne7 {[%clk 0:00:38]} 28. Rf3 {[%clk 0:00:34]}  Qe6 {[%clk 0:00:33]} 29. Qh4 {[%clk 0:00:22]}  f5 {[%clk 0:00:30]} 30. exf5 {[%clk 0:00:12]}  Nxf5 {[%clk 0:00:30]} 31. Nxf5 {[%clk 0:00:13]}  Qxf5 {[%clk 0:00:31]} 32. Rfe3 {[%clk 0:00:13]}  d5 {[%clk 0:00:26]} 33. Kh2 {[%clk 0:00:12]}  Bc5 {[%clk 0:00:24]} 34. Rxe8 {[%clk 0:00:11]}  Rxe8 {[%clk 0:00:25]} 35. Rg3 {[%clk 0:00:11]}  Bd6 {[%clk 0:00:24]} 36. Rf3 {[%clk 0:00:10]}  d4 {[%clk 0:00:21]} 37. Nd1 {[%clk 0:00:09]}  Qxc2 {[%clk 0:00:19]} 38. Nf2 {[%clk 0:00:09]}  Qf5 {[%clk 0:00:19]} 39. Nh3 {[%clk 0:00:08]}  d3 {[%clk 0:00:18]} 40. Qf2 {[%clk 0:00:07]}  Re2 {[%clk 0:00:17]} 41. Qd4 {[%clk 0:00:06]}  Bc5 {[%clk 0:00:14]} 42. Qxd3 {[%clk 0:00:06]}  Qxd3 {[%clk 0:00:13]} 43. Rxd3 {[%clk 0:00:07]}  Rxb2 {[%clk 0:00:13]} 44. Rd7 {[%clk 0:00:07]}  b6 {[%clk 0:00:09]} 45. f5 {[%clk 0:00:08]}  Kg8 {[%clk 0:00:08]} 46. Nf4 {[%clk 0:00:08]}  Rf2 {[%clk 0:00:04]} 47. Ne6 {[%clk 0:00:08]}  Rxf5 {[%clk 0:00:04]} 48. Rxg7+ {[%clk 0:00:08]}  Kh8 {[%clk 0:00:04]} 49. Rxa7 {[%clk 0:00:08]}  Rxh5+ {[%clk 0:00:04]} 50. Kg3 {[%clk 0:00:08]}  Bd6+ {[%clk 0:00:04]} 51. Kg4 {[%clk 0:00:08]}  Rxa5 {[%clk 0:00:05]} 52. Rd7 {[%clk 0:00:07]}  h5+ {[%clk 0:00:05]} 53. Kh4 {[%clk 0:00:07]}  Be5 {[%clk 0:00:06]} 54. Kxh5 {[%clk 0:00:06]}  Ra3 {[%clk 0:00:03]} 55. Kh6 {[%clk 0:00:05]}  Kg8 {[%clk 0:00:01]} 56. g4 {[%clk 0:00:03]}  Rh3+ {[%clk 0:00:01]} 57. Kg6 {[%clk 0:00:04]}  Rf3 {[%clk 0:00:01]} 58. Rd8+ {[%clk 0:00:04]} 1-0


[Site "https://www.chess.com"]